bitfinex/quotes_BTCUSD_20250713
["timestamp","ask_amount","ask_price","bid_price","bid_amount"]
[1752430997134,0.25077469,118750.0,118740.0,2.00868993]
[1752430997442,0.50449964,118750.0,118740.0,1.99198993]
[1752430997825,0.50561964,118750.0,118740.0,1.99198993]
[1752430999878,0.48981964,118750.0,118740.0,1.99198993]
[1752431000086,0.48869964,118750.0,118740.0,1.99198993]
[1752431000292,0.25077469,118750.0,118740.0,1.99198993]
[1752431000863,0.25077469,118750.0,118740.0,2.00808993]
[1752431004563,0.25077469,118750.0,118740.0,2.02328993]
[1752431006148,0.25077469,118750.0,118740.0,2.00808993]
[1752431010937,0.25077469,118750.0,118740.0,1.99198993]
[1752431013424,0.25077469,118750.0,118740.0,2.00848993]
[1752431017810,0.0002,118760.0,118740.0,2.84083983]
[1752431018022,0.0002,118760.0,118750.0,0.61226014]
[1752431018203,0.0002,118760.0,118750.0,0.37739993]
[1752431018420,0.0002,118760.0,118750.0,0.71509993]
[1752431019317,0.0002,118760.0,118750.0,0.71809993]
[1752431020550,0.0002,118760.0,118750.0,0.71509993]
[1752431020754,0.0002,118760.0,118750.0,0.71909993]
[1752431021756,0.0002,118760.0,118750.0,0.72109993]
[1752431027324,0.0002,118760.0,118750.0,0.46609993]
[1752431027536,0.0002,118760.0,118750.0,0.72109993]
[1752431031053,0.31701357,118780.0,118760.0,0.3706]
[1752431031257,0.31709762,118780.0,118770.0,0.36055993]
[1752431031589,0.31709762,118780.0,118770.0,0.69819993]
[1752431032842,0.31709762,118780.0,118770.0,0.70119993]
[1752431033046,0.31709762,118780.0,118770.0,0.72637311]
[1752431033841,0.31709762,118780.0,118770.0,0.72737311]
[1752431034050,0.31709762,118780.0,118770.0,0.92905311]
[1752431035793,0.31709762,118780.0,118770.0,0.91405311]
[1752431037567,0.33381762,118780.0,118770.0,0.91405311]
[1752431037797,0.34931762,118780.0,118770.0,0.90888311]
[1752431038426,0.34931762,118780.0,118770.0,0.91211311]
[1752431038634,0.34931762,118780.0,118770.0,0.91425311]
[1752431038635,0.31709762,118780.0,118770.0,0.91425311]
[1752431039043,0.47564851,118780.0,118770.0,0.91425311]
[1752431039890,0.47564851,118780.0,118770.0,0.93035311]
[1752431041922,0.47564851,118780.0,118770.0,0.90517993]
[1752431042335,0.47564851,118780.0,118770.0,0.88907993]
[1752431044033,0.47564851,118780.0,118770.0,0.90517993]
[1752431045840,0.47564851,118780.0,118770.0,0.88907993]
[1752431047118,0.47564851,118780.0,118770.0,0.90517993]
[1752431047342,0.47564851,118780.0,118770.0,0.88907993]
[1752431048472,0.47564851,118780.0,118770.0,0.90517993]
[1752431049894,0.47564851,118780.0,118770.0,0.92057993]
[1752431053301,8.405e-05,118780.0,118770.0,0.92057993]
[1752431053544,0.47564851,118780.0,118770.0,0.92057993]
[1752431053979,8.405e-05,118780.0,118770.0,0.92057993]
[1752431054185,0.23786628,118780.0,118770.0,0.92057993]
[1752431055873,8.405e-05,118780.0,118770.0,0.92057993]
[1752431056012,0.23786628,118780.0,118770.0,0.92057993]
[1752431057266,0.23828223,118800.0,118780.0,0.0314]
[1752431057493,0.23828223,118800.0,118790.0,0.37388993]
[1752431057728,0.47606446,118800.0,118790.0,0.37711993]
[1752431057941,0.47606446,118800.0,118790.0,0.71469993]
[1752431058712,0.47606446,118800.0,118790.0,0.68329993]
[1752431059874,0.47606446,118800.0,118790.0,0.69859993]
[1752431060416,0.47606446,118800.0,118790.0,0.68329993]
[1752431060650,0.47718446,118800.0,118790.0,0.68329993]
[1752431060884,0.49218446,118800.0,118790.0,0.68329993]
[1752431061110,0.72996669,118800.0,118790.0,0.68329993]
[1752431061329,0.71384669,118800.0,118790.0,0.68329993]
[1752431061554,0.47606446,118800.0,118790.0,0.68329993]
[1752431064727,0.47606446,118800.0,118790.0,0.69899993]
[1752431065198,0.31742749,118800.0,118790.0,0.69899993]
[1752431067265,0.31742749,118800.0,118790.0,0.71499993]
[1752431069928,0.0005,118800.0,118790.0,0.71499993]
[1752431070142,0.31742749,118800.0,118790.0,0.71499993]
[1752431071488,0.30902592,118800.0,118790.0,0.71499993]
[1752431071705,0.30902592,118800.0,118790.0,0.68329993]
[1752431071706,0.31692749,118800.0,118790.0,0.68329993]
[1752431071922,0.30852592,118800.0,118790.0,0.68329993]
[1752431072136,0.31692749,118800.0,118790.0,0.71499993]
[1752431072563,0.31692749,118800.0,118790.0,0.71699993]
[1752431073021,0.31692749,118800.0,118790.0,0.71499993]
[1752431073222,0.0002,118810.0,118790.0,0.68329993]
[1752431073427,0.0002,118810.0,118800.0,0.34026993]
[1752431073631,0.0002,118810.0,118800.0,0.34546993]
[1752431073632,0.31712749,118810.0,118800.0,0.34546993]
[1752431073833,0.31712749,118810.0,118800.0,0.71542993]
[1752431074042,0.31712749,118810.0,118800.0,0.82026993]
[1752431075079,0.31712749,118810.0,118800.0,0.82326993]
[1752431078778,0.65097498,118810.0,118800.0,0.53182993]
[1752431079005,0.65097498,118810.0,118800.0,0.65922993]
[1752431079006,0.66707498,118810.0,118800.0,0.65922993]
[1752431079216,0.66707498,118810.0,118800.0,0.86082993]
[1752431082477,0.66707498,118810.0,118800.0,0.85982993]
[1752431083144,0.66707498,118810.0,118800.0,0.85682993]
[1752431083354,0.66777498,118810.0,118800.0,0.85682993]
[1752431083563,0.66777498,118810.0,118800.0,0.85882993]
[1752431086634,0.66452139,118810.0,118800.0,0.85882993]
[1752431087889,1.46452139,118810.0,118800.0,0.85882993]
[1752431088291,1.48643595,118810.0,118800.0,0.85882993]
[1752431088695,1.48643595,118810.0,118800.0,0.75398993]
[1752431089537,1.8409768,118810.0,118800.0,0.62658993]
[1752431089752,1.8662068,118810.0,118800.0,0.75398993]
[1752431090703,1.8662068,118810.0,118800.0,0.75198993]
[1752431099735,1.8662068,118810.0,118800.0,0.75208993]
[1752431100230,1.84429224,118810.0,118800.0,0.75208993]
[1752431102474,1.84429224,118810.0,118800.0,0.75723993]
[1752431102475,1.14327749,118810.0,118800.0,0.75723993]
[1752431102630,1.11804749,118810.0,118800.0,0.77333993]
[1752431102843,1.11804749,118810.0,118800.0,0.75723993]
[1752431103370,1.45804749,118810.0,118800.0,0.75723993]
[1752431103590,1.45804749,118810.0,118800.0,0.77333993]
[1752431104319,1.45804749,118810.0,118800.0,0.75723993]
[1752431105807,1.77497498,118810.0,118800.0,0.75208993]
[1752431106062,1.79037498,118810.0,118800.0,0.75208993]
[1752431106263,1.80617498,118810.0,118800.0,0.75208993]
[1752431106467,1.80687498,118810.0,118800.0,0.75208993]
[1752431107495,1.80617498,118810.0,118800.0,0.75208993]
[1752431108837,1.79037498,118810.0,118800.0,0.75208993]
[1752431111463,1.80657498,118810.0,118800.0,0.75208993]
[1752431112802,1.79037498,118810.0,118800.0,0.75208993]
[1752431113670,1.14112,118810.0,118800.0,0.75208993]
[1752431113895,1.77497498,118810.0,118800.0,0.75208993]
[1752431114565,1.79157498,118810.0,118800.0,0.75208993]
[1752431116313,1.80767498,118810.0,118800.0,0.75208993]
[1752431120722,1.79157498,118810.0,118800.0,0.75208993]
[1752431123037,1.77497498,118810.0,118800.0,0.75208993]
[1752431123272,1.77497498,118810.0,118800.0,0.75501993]
[1752431123792,1.77497498,118810.0,118800.0,0.75710993]
[1752431124128,1.77497498,118810.0,118800.0,0.75208993]
[1752431124343,1.79057498,118810.0,118800.0,0.75208993]
[1752431124543,1.77497498,118810.0,118800.0,0.77267993]
[1752431124999,1.77497498,118810.0,118800.0,0.75697993]
[1752431126280,1.77497498,118810.0,118800.0,0.75208993]
[1752431126481,1.79057498,118810.0,118800.0,0.75208993]
[1752431128684,1.77497498,118810.0,118800.0,0.75501993]
[1752431129936,1.79017498,118810.0,118800.0,0.75208993]
[1752431130606,1.77497498,118810.0,118800.0,0.75208993]
[1752431130819,1.77497498,118810.0,118800.0,0.75697993]
[1752431131634,1.77497498,118810.0,118800.0,0.75501993]
[1752431133734,1.77497498,118810.0,118800.0,0.75697993]
[1752431135879,1.77497498,118810.0,118800.0,0.75501993]
[1752431136610,1.77497498,118810.0,118800.0,0.77227993]
[1752431136824,1.14112,118810.0,118800.0,0.77227993]
[1752431137024,1.77497498,118810.0,118800.0,0.77227993]
[1752431137254,1.77497498,118810.0,118800.0,0.75697993]
[1752431137442,1.77497498,118810.0,118800.0,0.75501993]
[1752431139014,1.61657982,118810.0,118800.0,0.75501993]
[1752431140062,1.61657982,118810.0,118800.0,0.75697993]
[1752431140512,1.61545982,118810.0,118800.0,0.77307993]
[1752431141259,1.61545982,118810.0,118800.0,0.78947993]
[1752431144779,0.8,118810.0,118800.0,0.78947993]
[1752431144974,1.27545982,118810.0,118800.0,0.78947993]
[1752431146988,1.11692575,118810.0,118800.0,0.78947993]
[1752431160505,1.11692575,118810.0,118800.0,0.89431993]
[1752431161852,1.11692575,118810.0,118800.0,0.89631993]
[1752431165519,1.4338515,118810.0,118800.0,0.89631993]
[1752431168996,1.27539688,118810.0,118800.0,0.89631993]
[1752431173506,0.8,118810.0,118800.0,0.89631993]
[1752431173764,1.27539688,118810.0,118800.0,0.89631993]
[1752431183844,0.8,118810.0,118800.0,0.89631993]
[1752431184437,1.03769844,118810.0,118800.0,0.89631993]
[1752431185181,1.03769844,118810.0,118800.0,0.89431993]
[1752431185407,1.03769844,118810.0,118800.0,0.89931993]
[1752431185811,1.03769844,118810.0,118800.0,0.90031993]
[1752431186553,0.8,118810.0,118800.0,0.90031993]
[1752431186797,1.03769844,118810.0,118800.0,1.24031993]
[1752431186998,1.0299598,118810.0,118800.0,1.24031993]
[1752431187605,1.0299598,118810.0,118800.0,1.53601993]
[1752431187984,1.0299598,118810.0,118800.0,1.56177468]
[1752431188204,0.99359091,118810.0,118800.0,1.61177468]
[1752431190952,0.75589247,118810.0,118800.0,1.61177468]
[1752431191194,0.7035663,118810.0,118800.0,1.86401397]
[1752431191550,0.69516619,118810.0,118800.0,1.86401397]
[1752431191960,0.68676608,118810.0,118800.0,1.75817397]
[1752431192160,0.68676608,118810.0,118800.0,1.75317397]
[1752431192351,0.68676608,118810.0,118800.0,1.76117397]
[1752431192819,0.68676608,118810.0,118800.0,1.55957397]
[1752431192944,0.68676608,118810.0,118800.0,1.32187553]
[1752431193562,0.67849324,118810.0,118800.0,1.32187553]
[1752431193867,0.65629405,118810.0,118800.0,1.68856801]
[1752431194071,0.64789519,118810.0,118800.0,1.68856801]
[1752431194288,0.06747277,118850.0,118820.0,0.05]
[1752431194518,0.06797168,118850.0,118840.0,0.11910993]
[1752431194737,0.38466416,118850.0,118840.0,0.37689993]
[1752431194948,0.38466416,118850.0,118840.0,0.71433993]
[1752431195157,0.38466416,118850.0,118840.0,1.02073993]
[1752431196021,0.31745139,118850.0,118840.0,1.02273993]
[1752431196547,0.31745139,118850.0,118840.0,1.02873993]
[1752431198679,0.06721277,118870.0,118840.0,0.99703993]
[1752431198901,0.06733873,118870.0,118860.0,0.08542993]
[1752431199120,0.38515121,118870.0,118860.0,0.34006993]
[1752431199395,0.38515121,118870.0,118860.0,0.69315993]
[1752431199804,0.38515121,118870.0,118860.0,0.69622993]
[1752431200453,0.31793844,118870.0,118860.0,0.69622993]
[1752431201100,0.31669248,118870.0,118860.0,0.69622993]
[1752431201314,0.31669248,118870.0,118860.0,0.69820993]
[1752431201516,0.31669248,118870.0,118860.0,0.71440993]
[1752431201767,0.31669248,118870.0,118860.0,0.71840993]
[1752431202095,0.31669248,118870.0,118860.0,0.68650993]
[1752431202304,0.09617344,118890.0,118870.0,0.0165]
[1752431202509,0.09617344,118890.0,118880.0,0.34006993]
[1752431202935,0.01481532,118890.0,118880.0,0.69904993]
[1752431203356,0.00114973,118890.0,118880.0,0.69904993]
[1752431203717,0.31784221,118890.0,118880.0,0.69904993]
[1752431204126,0.00114973,118890.0,118880.0,0.68244993]
[1752431204342,0.00114973,118890.0,118880.0,0.69904993]
[1752431204563,0.66543469,118890.0,118880.0,0.68179993]
[1752431204776,1.00543469,118890.0,118880.0,0.68079993]
[1752431204976,0.41126892,118890.0,118880.0,0.68079993]
[1752431205186,0.41126892,118890.0,118880.0,0.68279993]
[1752431205402,1.02322162,118890.0,118880.0,0.68079993]
[1752431206047,1.05919473,118890.0,118880.0,0.62427993]
[1752431206258,1.05919473,118890.0,118880.0,0.75363993]
[1752431206259,1.39746422,118890.0,118880.0,0.75363993]
[1752431206681,1.13121174,118890.0,118880.0,0.75363993]
[1752431206899,1.44790422,118890.0,118880.0,0.53885]
[1752431207104,1.44790422,118890.0,118880.0,0.66825]
[1752431207504,1.44790422,118890.0,118880.0,0.65985366]
[1752431208057,1.13121174,118890.0,118880.0,0.65145732]
[1752431208259,1.10963473,118890.0,118880.0,0.65145732]
[1752431208468,1.10963473,118890.0,118880.0,0.64306098]
[1752431208605,1.10963473,118890.0,118880.0,0.63466464]
[1752431208808,1.08820247,118890.0,118880.0,0.63466464]
[1752431209006,1.08820247,118890.0,118880.0,0.6262683]
[1752431209563,1.08820247,118890.0,118880.0,0.61787196]
[1752431209760,1.08820247,118890.0,118880.0,0.62187196]
[1752431209967,1.08820247,118890.0,118880.0,0.61347562]
[1752431210357,1.08820247,118890.0,118880.0,0.60507928]
[1752431210595,0.0154,118840.0,118810.0,0.0166]
[1752431210812,0.08276778,118850.0,118840.0,0.20152]
[1752431211046,0.03921919,118850.0,118840.0,0.33088]
[1752431211267,0.1159192,118850.0,118840.0,0.33088]
[1752431211700,0.07390993,118850.0,118840.0,0.41630993]
[1752431211948,0.72183574,118850.0,118840.0,0.28694993]
[1752431212178,0.70404881,118850.0,118840.0,0.75287993]
[1752431212398,1.44617122,118850.0,118840.0,0.43932705]
[1752431212637,1.50688409,118850.0,118840.0,0.2138471]
[1752431212867,1.50688409,118850.0,118820.0,0.20164596]
[1752431212868,0.0047,118830.0,118820.0,0.20164596]
[1752431213086,0.97808496,118830.0,118820.0,0.20164596]
[1752431213298,1.02499718,118830.0,118820.0,0.20164596]
[1752431213515,1.02488997,118830.0,118820.0,0.20164596]
[1752431213720,1.00331296,118830.0,118820.0,0.20164596]
[1752431213928,0.03694085,118820.0,118800.0,0.0001]
[1752431214130,0.07623479,118820.0,118810.0,0.28698993]
[1752431214331,0.07623479,118820.0,118810.0,0.26700468]
[1752431214769,0.4345546,118820.0,118800.0,0.00059891]
[1752431214882,0.37694085,118810.0,118800.0,0.08602884]
[1752431215094,0.39472778,118810.0,118800.0,0.41706884]
[1752431215298,1.05334274,118810.0,118800.0,0.41706884]
[1752431215510,0.03694085,118800.0,118760.0,0.0163]
[1752431215729,0.0224,118790.0,118770.0,0.27211097]
[1752431215924,0.06598337,118790.0,118770.0,0.27211097]
[1752431216134,0.365235,118790.0,118770.0,0.27211097]
[1752431216634,0.365235,118790.0,118770.0,0.60887097]
[1752431216855,0.97338496,118780.0,118770.0,0.60887097]
[1752431217095,0.99093889,118780.0,118770.0,0.73839097]
[1752431217517,1.0092587,118780.0,118770.0,0.73839097]
[1752431217745,1.0092587,118780.0,118770.0,0.73939097]
[1752431218186,1.0092587,118780.0,118770.0,0.73839097]
[1752431218406,1.13162948,118780.0,118770.0,0.66784]
[1752431218617,1.04566667,118780.0,118770.0,0.66784]
[1752431218835,1.06481981,118780.0,118770.0,0.66784]
[1752431219052,1.06681981,118780.0,118770.0,0.66784]
[1752431219268,1.06481981,118780.0,118770.0,0.66784]
[1752431219505,1.06881981,118780.0,118770.0,0.66784]
[1752431219721,0.67523333,118780.0,118770.0,0.66796]
[1752431219973,0.99392581,118780.0,118770.0,0.66796]
[1752431220203,0.67723333,118780.0,118770.0,0.75338993]
[1752431220439,0.66269248,118780.0,118770.0,0.75338993]
[1752431220641,0.66269248,118780.0,118770.0,0.77462993]
[1752431220859,0.71313248,118780.0,118770.0,0.78982993]
[1752431221064,0.65563994,118780.0,118770.0,0.78982993]
[1752431221278,0.30963994,118780.0,118770.0,0.78982993]
[1752431221493,0.64963994,118790.0,118780.0,0.0163]
[1752431221705,0.30963994,118790.0,118780.0,0.11892993]
[1752431221910,0.30963994,118790.0,118780.0,0.45862993]
[1752431222188,0.09244277,118810.0,118780.0,0.45862993]
[1752431222399,0.30963994,118790.0,118780.0,0.33876]
[1752431222603,0.30963994,118790.0,118780.0,0.55406993]
[1752431222828,0.025229,118820.0,118790.0,0.0314]
[1752431223068,0.30963994,118800.0,118790.0,0.0314]
[1752431223304,0.64963994,118800.0,118790.0,0.37013]
[1752431223517,0.06721277,118830.0,118800.0,0.0314]
[1752431223747,0.30963994,118810.0,118800.0,0.0314]
[1752431223960,0.64963994,118810.0,118800.0,0.50296]
[1752431226303,0.65063994,118810.0,118800.0,0.50296]
[1752431226715,0.65263994,118810.0,118800.0,0.50296]
[1752431227311,0.65263994,118810.0,118800.0,1.00296]
[1752431229914,0.003,118810.0,118800.0,1.00296]
[1752431230355,0.003,118810.0,118800.0,1.08838993]
[1752431230764,0.003,118810.0,118800.0,1.08848993]
[1752431230992,0.30963994,118810.0,118800.0,1.05708993]
[1752431231195,0.30963994,118810.0,118800.0,1.05808993]
[1752431231402,0.30963994,118810.0,118800.0,1.09068993]
[1752431231822,0.06721277,118830.0,118820.0,0.0175]
[1752431232047,0.37685271,118830.0,118820.0,0.58642993]
[1752431232276,0.06721277,118830.0,118820.0,0.58936993]
[1752431232475,0.37685271,118830.0,118820.0,0.58936993]
[1752431232881,0.001,118830.0,118820.0,0.57186993]
[1752431233123,0.31063994,118830.0,118820.0,0.57186993]
[1752431233327,0.31263994,118830.0,118820.0,0.57186993]
[1752431233542,0.31263994,118830.0,118820.0,0.58846993]
[1752431234072,0.31163994,118830.0,118820.0,0.58846993]
[1752431234276,0.30963994,118830.0,118820.0,0.58846993]
[1752431241792,0.64963994,118830.0,118820.0,0.58846993]
[1752431242643,0.64963994,118830.0,118820.0,0.58856993]
[1752431243066,0.64963994,118830.0,118820.0,0.79016993]
[1752431249120,0.65680597,118830.0,118820.0,0.79016993]
[1752431257090,0.65180597,118830.0,118820.0,0.79016993]
[1752431259028,0.65180597,118830.0,118820.0,0.78948993]
[1752431259842,0.65188986,118830.0,118820.0,0.78948993]
[1752431265135,0.33508389,118830.0,118820.0,0.78948993]
[1752431265367,0.65188986,118830.0,118820.0,0.78948993]
[1752431267935,0.65129017,118830.0,118820.0,0.78948993]
[1752431272121,0.66419884,118830.0,118820.0,0.78948993]
[1752431286253,0.01299256,118830.0,118820.0,0.78948993]
[1752431286418,0.31688986,118830.0,118820.0,0.78948993]
[1752431287314,0.31688986,118830.0,118820.0,0.79048993]
[1752431287710,0.31688986,118830.0,118820.0,0.79148993]
[1752431288709,8.389e-05,118830.0,118820.0,0.79148993]
[1752431289564,8.389e-05,118830.0,118820.0,0.79048993]
[1752431289897,8.389e-05,118830.0,118820.0,0.79348993]
[1752431290419,8.389e-05,118830.0,118820.0,0.83948993]
[1752431290630,8.389e-05,118830.0,118820.0,0.84248993]
[1752431290836,8.389e-05,118830.0,118820.0,0.84648993]
[1752431291038,0.31688986,118830.0,118820.0,0.84348993]
[1752431291462,0.31688986,118830.0,118820.0,0.84748993]
[1752431291956,0.31688986,118830.0,118820.0,0.87320406]
[1752431294137,0.31688986,118830.0,118820.0,1.16890406]
[1752431295203,0.31688986,118830.0,118820.0,1.27370406]
[1752431296553,8.389e-05,118830.0,118820.0,1.27370406]
[1752431296760,0.31688986,118830.0,118820.0,1.27370406]
[1752431298090,0.31688986,118830.0,118820.0,1.06890993]
[1752431298303,0.31688986,118830.0,118820.0,1.19730993]
[1752431300071,0.31688986,118830.0,118820.0,0.90160993]
[1752431300477,0.31667767,118830.0,118820.0,0.90160993]
[1752431300718,0.31680597,118830.0,118820.0,0.86990993]
[1752431301315,0.31680597,118830.0,118820.0,0.90590993]
[1752431301936,0.31680597,118830.0,118820.0,0.77750993]
[1752431302137,0.38401874,118830.0,118820.0,0.90582993]
[1752431302520,0.38401874,118830.0,118820.0,0.9053993]
[1752431302724,0.38401874,118830.0,118820.0,0.8973993]
[1752431302929,0.38401874,118830.0,118820.0,0.8993993]
[1752431303131,0.38401874,118830.0,118820.0,0.9013993]
[1752431303361,0.38401874,118830.0,118820.0,0.8993993]
[1752431303560,0.38401874,118830.0,118820.0,0.8973993]
[1752431303766,0.31680597,118830.0,118820.0,0.8983993]
[1752431304398,0.31680597,118840.0,118830.0,0.0371]
[1752431304600,0.31730483,118840.0,118830.0,0.25499377]
[1752431304795,0.00049886,118840.0,118830.0,0.59251993]
[1752431305208,0.31730483,118840.0,118830.0,0.59251993]
[1752431306458,0.65730483,118840.0,118830.0,0.59251993]
[1752431306701,0.9741108,118840.0,118830.0,0.59271993]
[1752431307869,0.6341108,118840.0,118830.0,0.59271993]
[1752431308117,0.6341108,118840.0,118830.0,0.55357993]
[1752431308341,0.6351108,118840.0,118830.0,0.55357993]
[1752431308547,0.6351108,118840.0,118830.0,0.55056993]
[1752431310265,0.6351108,118840.0,118830.0,0.55357993]
[1752431310716,0.6351108,118840.0,118830.0,0.57087993]
[1752431316022,0.6351108,118840.0,118830.0,0.55056993]
[1752431318345,0.00149886,118840.0,118830.0,0.59271993]
[1752431318562,0.31830483,118840.0,118830.0,0.59271993]
[1752431320338,0.31830483,118840.0,118830.0,0.58271993]
[1752431329120,0.31419325,118840.0,118830.0,0.58271993]
[1752431329913,0.01287505,118850.0,118830.0,0.58271993]
[1752431330117,0.34,118860.0,118840.0,0.21882359]
[1752431330321,0.34008392,118860.0,118850.0,0.25104993]
[1752431330530,0.34008392,118860.0,118850.0,0.59061993]
[1752431331202,0.35212006,118860.0,118850.0,0.59061993]
[1752431331446,0.35412006,118860.0,118850.0,0.59061993]
[1752431331661,0.67092603,118860.0,118850.0,0.59061993]
[1752431332300,0.67092603,118860.0,118850.0,0.79217993]
[1752431333044,0.66892603,118860.0,118850.0,0.79217993]
[1752431333249,0.66992603,118860.0,118850.0,0.79217993]
[1752431336773,1.016432,118860.0,118850.0,0.75170993]
[1752431342802,1.016432,118860.0,118850.0,0.75326993]
[1752431344279,1.03097285,118860.0,118850.0,0.53812]
[1752431344496,1.03097285,118860.0,118850.0,0.66784]
[1752431347891,1.05619185,118860.0,118850.0,0.66784]
[1752431362512,1.04459185,118860.0,118850.0,0.66784]
[1752431363866,1.02649185,118860.0,118850.0,0.66784]
[1752431365603,1.01445571,118860.0,118850.0,0.66784]
[1752431368229,1.02644936,118860.0,118850.0,0.66784]
[1752431372202,0.98668951,118860.0,118850.0,0.79433993]
[1752431373710,0.98668951,118860.0,118850.0,0.79222993]
[1752431376280,0.98668951,118860.0,118850.0,0.79433993]
[1752431381613,0.32988354,118860.0,118850.0,0.79433993]
[1752431382042,0.66988354,118860.0,118850.0,0.79433993]
[1752431387540,0.98668951,118860.0,118850.0,0.79433993]
[1752431390714,0.66988354,118860.0,118850.0,0.79433993]
[1752431390927,0.98668951,118860.0,118850.0,0.79433993]
[1752431396340,0.98668951,118860.0,118850.0,0.66461993]
[1752431396469,0.97469586,118860.0,118850.0,0.79349993]
[1752431398949,0.65788989,118860.0,118850.0,0.79349993]
[1752431399327,1.05368214,118860.0,118850.0,0.79349993]
[1752431401401,1.06469049,118860.0,118850.0,0.79349993]
[1752431411144,1.76628036,118860.0,118850.0,0.79349993]
[1752431411385,1.76628036,118860.0,118850.0,0.57349993]
[1752431412529,1.05368214,118860.0,118850.0,0.57349993]
[1752431416949,1.76628036,118860.0,118850.0,0.57349993]
[1752431418394,1.76628036,118860.0,118850.0,0.53242993]
[1752431418594,1.91586646,118860.0,118850.0,0.53242993]
[1752431418778,1.83043653,118860.0,118850.0,0.53242993]
[1752431423228,1.81703653,118860.0,118850.0,0.53242993]
[1752431425639,1.83043653,118860.0,118850.0,0.20156]
[1752431426108,0.83984085,118850.0,118820.0,0.0001]
[1752431426326,0.35454085,118820.0,118800.0,0.53993]
[1752431426555,0.37255617,118820.0,118810.0,0.28698993]
[1752431427013,0.37255617,118820.0,118810.0,0.41550993]
[1752431427650,1.79775261,118820.0,118810.0,0.41600879]
[1752431428092,1.82332524,118820.0,118810.0,0.28748879]
[1752431428307,1.82332524,118820.0,118810.0,0.43739879]
[1752431428519,0.84063811,118820.0,118810.0,0.45790879]
[1752431428744,0.81506548,118820.0,118810.0,0.79456879]
[1752431428970,0.31685865,118820.0,118810.0,0.79456879]
[1752431429413,0.31685865,118820.0,118810.0,0.78942879]
[1752431429414,0.6357173,118820.0,118810.0,0.78942879]
[1752431429865,0.6357173,118820.0,118810.0,0.79245879]
[1752431430298,0.6357173,118820.0,118810.0,0.79456879]
[1752431430728,0.6367173,118820.0,118810.0,0.79456879]
[1752431430926,0.31985865,118820.0,118810.0,0.79456879]
[1752431443269,0.6367173,118820.0,118810.0,0.77616879]
[1752431443477,0.6367173,118820.0,118810.0,0.77405879]
[1752431443687,0.6367173,118820.0,118810.0,0.75254879]
[1752431443954,0.71847092,118820.0,118810.0,0.75254879]
[1752431444169,0.73648624,118820.0,118810.0,0.75254879]
[1752431444579,0.75468624,118820.0,118810.0,0.75254879]
[1752431444783,0.76808624,118820.0,118810.0,0.75254879]
[1752431445430,1.10808624,118820.0,118810.0,0.75254879]
[1752431445646,1.10808624,118820.0,118810.0,0.66711886]
[1752431446073,0.69241482,118820.0,118810.0,0.79488879]
[1752431446289,0.65985865,118820.0,118810.0,0.79488879]
[1752431451013,0.31985865,118820.0,118810.0,0.79488879]
[1752431459338,0.31685865,118820.0,118810.0,0.75768879]
[1752431460038,0.31685865,118820.0,118810.0,0.79488879]
[1752431460395,0.31685865,118820.0,118810.0,0.79688879]
[1752431460599,0.31685865,118820.0,118810.0,0.79888879]
[1752431467814,0.31685865,118840.0,118820.0,0.0379]
[1752431468022,0.31685865,118840.0,118830.0,0.38000993]
[1752431468023,0.72407142,118840.0,118830.0,0.38000993]
[1752431468226,0.72407142,118840.0,118830.0,0.72190993]
[1752431469164,1.04093007,118840.0,118830.0,0.72190993]
[1752431472416,1.04093007,118840.0,118830.0,0.70066993]
[1752431472635,1.05894539,118840.0,118830.0,0.67872993]
[1752431475036,1.07674539,118840.0,118830.0,0.67872993]
[1752431475221,0.99173262,118840.0,118830.0,0.67872993]
[1752431479741,0.9737173,118840.0,118830.0,0.67872993]
[1752431480523,0.9737173,118840.0,118830.0,0.72160993]
[1752431485999,0.9737173,118840.0,118830.0,0.92316993]
[1752431489551,0.97364909,118840.0,118830.0,0.92316993]
[1752431498672,0.33993179,118840.0,118830.0,0.92316993]
[1752431498877,0.97364909,118840.0,118830.0,0.92316993]
[1752431510874,0.97364909,118840.0,118830.0,0.88342993]
[1752431511083,0.97364909,118840.0,118830.0,0.88028993]
[1752431511292,0.99284909,118840.0,118830.0,0.88028993]
[1752431512294,1.00484909,118840.0,118830.0,0.88028993]
[1752431513378,0.99284909,118840.0,118830.0,0.88028993]
[1752431513584,0.97364909,118840.0,118830.0,0.88028993]
[1752431514139,0.97464909,118840.0,118830.0,0.88028993]
[1752431518135,0.34093179,118840.0,118830.0,1.38028993]
[1752431518372,0.97464909,118840.0,118830.0,1.38028993]
[1752431520489,0.99294909,118840.0,118830.0,1.38028993]
[1752431520609,1.33634859,118840.0,118830.0,1.29486]
[1752431521462,1.38676859,118840.0,118830.0,1.02977926]
[1752431521897,1.4440762,118840.0,118830.0,0.42489505]
[1752431522115,1.63864459,118840.0,118830.0,0.21091995]
[1752431522327,1.74501298,118840.0,118830.0,0.04199713]
[1752431522577,1.74501298,118840.0,118830.0,0.01259451]
[1752431523087,1.74501298,118840.0,118830.0,0.26067377]
[1752431523327,0.05042,118810.0,118800.0,0.5001]
[1752431523568,0.36727865,118810.0,118800.0,0.7017]
[1752431524070,0.39251065,118810.0,118800.0,0.7017]
[1752431524323,0.39251065,118810.0,118800.0,0.95826]
[1752431524547,0.41747123,118810.0,118800.0,0.95826]
[1752431524765,0.41847123,118810.0,118800.0,0.95826]
[1752431524987,1.03945073,118810.0,118800.0,0.96132]
[1752431525188,1.03945073,118810.0,118800.0,0.99496]
[1752431525439,1.03945073,118810.0,118800.0,1.33165]
[1752431527420,0.69736008,118810.0,118800.0,1.42013993]
[1752431527632,1.01421873,118810.0,118800.0,1.42013993]
[1752431531395,1.01421873,118810.0,118800.0,1.42209993]
[1752431532386,1.01421873,118810.0,118800.0,1.42013993]
[1752431535270,1.01421873,118810.0,118800.0,1.39907993]
[1752431535722,1.01421873,118810.0,118800.0,1.29495]
[1752431535899,1.03944973,118810.0,118800.0,1.29495]
[1752431537688,1.03944973,118810.0,118800.0,1.31365]
[1752431537919,1.03944973,118810.0,118800.0,1.33361]
[1752431538346,0.69736008,118810.0,118800.0,1.42099993]
[1752431538472,1.01421873,118810.0,118800.0,1.42099993]
[1752431542885,0.65785865,118810.0,118800.0,1.42099993]
[1752431545782,0.31785865,118810.0,118800.0,1.42099993]
[1752431545991,0.65785865,118810.0,118800.0,1.42099993]
[1752431547254,0.65785865,118810.0,118800.0,1.52583993]
[1752431548742,0.65785865,118810.0,118800.0,2.02583993]
[1752431549191,0.65785865,118810.0,118800.0,1.76731993]
[1752431549422,0.98925815,118810.0,118800.0,2.00215993]
[1752431549657,0.98925815,118810.0,118800.0,1.89983]
[1752431549805,0.99925815,118810.0,118800.0,1.89983]
[1752431551032,0.98925815,118810.0,118800.0,1.89983]
[1752431551964,0.98925815,118810.0,118800.0,1.79499]
[1752431554485,1.01448915,118810.0,118800.0,1.79499]
[1752431555935,1.06490915,118810.0,118800.0,1.79499]
[1752431558031,1.06490915,118810.0,118800.0,1.81239]
[1752431562682,1.06490915,118810.0,118800.0,1.83339]
[1752431563653,1.06490915,118810.0,118800.0,1.83645]
[1752431564176,1.06490915,118810.0,118800.0,1.79499]